Workbook

Sheet Конкурентный лист
F2: Конкурентный лист
G4: долл
G5: евро
B6: № | C6: Наименование материала / работы / услуги | D6: ЕИ | E6: Кол-во | F6: Поставщик 1 | H6: Поставщик 2 | J6: Поставщик 3 | L6: Поставщик 4
F7: Цена, руб, с НДС | G7: Сумма, руб, с НДС | H7: =F7 -> Цена, руб, с НДС | I7: =G7 -> Сумма, руб, с НДС | J7: =F7 -> Цена, руб, с НДС | K7: =G7 -> Сумма, руб, с НДС | L7: =F7 -> Цена, руб, с НДС | M7: =G7 -> Сумма, руб, с НДС
B8: 1 | C8: Уплотнитель поршня (2 шт/уп) | E8: 4 | F8: =G8/E8 -> 261.775 | G8: 1047.1 | H8: =I8/E8 -> 500 | I8: 2000 | J8: =K8/E8 -> 850 | K8: 3400 | L8: =M8/E8 -> 437.5 | M8: 1750
B9: 2 | C9: Картридж активного входного клапана | E9: 2 | F9: =G9/E9 -> 511 | G9: 1022 | H9: =I9/E9 -> 450 | I9: 900 | J9: =K9/E9 -> 300 | K9: 600 | L9: =M9/E9 -> 400 | M9: 800
B10: 3 | C10: Активный входной клапан | E10: 2 | F10: 849.59 | G10: 1699.18 | H10: 850 | I10: 1700 | J10: 550 | K10: 1100 | L10: 750 | M10: 1500
B11: 4 | C11: Промывочный клапан | E11: 2 | F11: 882.5 | G11: 1765 | H11: 900 | I11: 1800 | J11: 950 | K11: 1900 | L11: 800 | M11: 1600
C12: Итого, с НДС: | F12: =SUM(G8:G11) -> 5533.28 | H12: =SUM(I8:I11) -> 6400 | J12: =SUM(K8:K11) -> 7000 | L12: =SUM(M8:M11) -> 5650
C13: ТРАНСПОРТНЫЕ РАСХОДЫ
C14: Условия оплаты
C16: Базис поставки
C17: Срок поставки / выполнения работ / оказания услуг
C18: Соответствие Техническим требованиям (ТЗ) / Объему работ,услуг
B21: ВЫБРАННЫЙ ПОСТАВЩИК | E21: КРАТКОЕ ОБОСНОВАНИЕ ВЫБОРА
B22: =INDEX(F6:M6,MATCH(MIN(F12:M12),F12:K12,0)) -> Поставщик 1 | E22: Минимальная цена
C38: Итого, с НДС: | D38: Цена, руб, без НДС | E38: Сумма, руб, без НДС | G38: соответствует | I38: не включены
C39: Итого, без НДС: | D39: Цена, руб, с НДС | E39: Сумма, руб, с НДС | G39: аналог | I39: включены
C43: Итого приведенная стоимость с НДС:
C44: Итого приведенная стоимость без НДС:

Sheet лист1

Sheet лист2

Sheet лист3

Sheet лист4
